bitfinex-derivatives/quotes_SOLF0:USTF0_20260126
["timestamp","ask_amount","ask_price","bid_price","bid_amount"]
[1769458417357,6.07251114,124.13,124.1,0.05871809]
[1769458417558,6.07251114,124.12,124.1,0.05871809]
[1769458417753,36.94866579,124.14,124.1,0.05871809]
[1769458417954,6.07256459,124.13,124.1,0.05871809]
[1769458418160,6.07256459,124.12,124.1,0.05871809]
[1769458418360,0.05096904,124.13,124.1,0.05871809]
[1769458418564,6.0727899,124.12,124.1,0.05871809]
[1769458423764,36.06187581,124.12,124.07,40.09187143]
[1769458424067,6.0727899,124.11,124.08,2.3819707]
[1769458424864,29.98908591,124.12,124.08,2.3819707]
[1769458426765,29.98908591,124.12,124.08,9.6426707]
[1769458427068,0.05096904,124.13,124.08,40.09107143]
[1769458427269,6.07203635,124.12,124.08,40.09107143]
[1769458428665,6.07203635,124.12,124.09,7.2602]
[1769458428871,0.05096904,124.13,124.1,2.3819707]
[1769458429967,29.98908591,124.14,124.1,2.3819707]
[1769458429968,29.98908591,124.14,124.11,2.3819707]
[1769458430168,29.06015194,124.18,124.11,2.3819707]
[1769458430365,29.06015194,124.16,124.11,2.3819707]
[1769458430567,29.06015194,124.18,124.13,32.90981976]
[1769458431773,29.06015194,124.18,124.12,9.6403707]
[1769458432777,29.06015194,124.18,124.13,2.3819707]
[1769458433466,36.31525194,124.18,124.12,2.3819707]
[1769458433667,36.31525194,124.18,124.11,32.90981976]
[1769458434171,36.31525194,124.18,124.12,2.3819707]
[1769458435778,36.31525194,124.18,124.12,32.90981976]
[1769458435978,36.31525194,124.18,124.13,2.3819707]
[1769458439084,36.31525194,124.18,124.13,32.90981976]
[1769458439383,36.31525194,124.18,124.14,2.3819707]
[1769458440878,29.06015194,124.18,124.14,2.3819707]
[1769458441086,29.06015194,124.2,124.17,2.3819707]
[1769458441388,29.06015194,124.2,124.16,2.3819707]
[1769458441885,29.06015194,124.2,124.15,2.3819707]
[1769458442089,29.06015194,124.2,124.14,2.3819707]
[1769458442289,29.06015194,124.18,124.13,32.90981976]
[1769458443172,31.44212264,124.18,124.1,32.90981976]
[1769458444181,0.053123,124.15,124.1,32.90981976]
[1769458444883,0.053123,124.15,124.11,7.259]
[1769458445182,0.053123,124.15,124.11,37.78684906]
[1769458448577,31.44212264,124.17,124.11,37.78684906]
[1769458448778,31.44212264,124.17,124.12,0.05374192]
[1769458449184,9.6372707,124.18,124.12,30.58159098]
[1769458449586,38.69742264,124.18,124.12,30.58159098]
[1769458449988,29.06015194,124.18,124.13,30.52784906]
[1769458453283,38.69742264,124.18,124.13,30.52784906]
[1769458453490,29.06015194,124.17,124.13,30.52784906]
[1769458461597,29.06015194,124.17,124.12,7.31234192]
[1769458461796,29.06015194,124.17,124.12,33.58891725]
[1769458462396,31.44212264,124.17,124.12,7.31234192]
[1769458463999,31.44212264,124.17,124.12,33.58891725]
[1769458477612,31.44125165,124.17,124.12,33.58891725]
[1769458486817,29.55361431,124.19,124.14,26.27657533]
[1769458487718,29.55361431,124.19,124.15,0.05160518]
[1769458489321,27.1725146,124.19,124.15,0.05160518]
[1769458491713,29.55361431,124.19,124.15,0.05160518]
[1769458495220,27.1725146,124.19,124.15,0.05160518]
[1769458501524,27.1725146,124.19,124.15,7.30840518]
[1769458502620,27.1725146,124.19,124.15,0.05160518]
[1769458502828,29.55361431,124.19,124.15,0.05160518]
[1769458503228,28.40347284,124.18,124.15,0.05160518]
[1769458507736,26.02237313,124.18,124.15,0.05160518]
[1769458513547,28.40347284,124.18,124.15,0.05160518]
[1769458518754,28.40347284,124.18,124.15,7.30820518]
[1769458520256,28.40347284,124.18,124.15,0.05160518]
[1769458522660,28.40347284,124.18,124.13,26.16084649]
[1769458523045,28.4587906,124.18,124.11,23.96569382]
[1769458523454,28.4587906,124.18,124.14,7.2573]
[1769458523653,28.40347284,124.18,124.14,7.2573]
[1769458524055,0.06179337,124.17,124.14,7.2573]
[1769458541375,24.19390437,124.17,124.12,7.2581]
[1769458541574,26.51258456,124.16,124.12,7.2581]
[1769458542472,26.51258456,124.16,124.12,31.22379382]
[1769458542672,24.132111,124.16,124.12,31.22379382]
[1769458545269,0.06179337,124.17,124.13,23.96569382]
[1769458546475,24.19390437,124.17,124.13,23.96569382]
[1769458548170,0.06179337,124.17,124.13,31.22369382]
[1769458548377,26.51258456,124.19,124.14,23.96569382]
[1769458548675,24.132111,124.19,124.14,24.02006142]
[1769458549877,24.132111,124.19,124.14,31.27726142]
[1769458550675,24.132111,124.19,124.15,24.28126661]
[1769458556176,9.63447356,124.2,124.15,24.28126661]
[1769458556479,7.254,124.2,124.15,24.28126661]
[1769458558478,9.63447356,124.2,124.15,24.28126661]
[1769458559881,32.84071533,124.2,124.15,24.28126661]
[1769458563788,25.58671533,124.2,124.15,31.53806661]
[1769458563981,30.45944177,124.22,124.16,24.28126661]
[1769458564284,32.83991533,124.22,124.16,24.28126661]
[1769458564784,2.38047356,124.21,124.16,24.28126661]
[1769458565283,25.58671533,124.2,124.14,24.28126661]
[1769458565586,23.20624177,124.18,124.12,24.28126661]
[1769458565778,25.58671533,124.18,124.12,24.28126661]
[1769458566082,2.38047356,124.15,124.1,24.28126661]
[1769458567186,32.84361533,124.15,124.1,24.28126661]
[1769458568786,2.38047356,124.13,124.08,299.96999375]
[1769458569877,2.38047356,124.13,124.09,24.28126661]
[1769458570073,32.84421533,124.14,124.09,24.28126661]
[1769458570286,32.84421533,124.14,124.09,24.33567392]
[1769458572385,25.58671533,124.13,124.07,24.28126661]
[1769458572591,25.58671533,124.12,124.05,24.28126661]
[1769458572984,25.58671533,124.12,124.05,31.54346661]
[1769458573184,25.58671533,124.12,124.06,24.28126661]
[1769458573678,2.38047356,124.11,124.06,24.28126661]
[1769458573874,0.05639972,124.1,124.06,24.28126661]
[1769458576384,2.43687328,124.1,124.06,24.28126661]
[1769458576581,25.64311505,124.1,124.03,24.28126661]
[1769458576782,2.38047356,124.09,124.03,24.28126661]
[1769458577084,2.38047356,124.09,124.05,24.28126661]
[1769458577589,0.05919786,124.07,124.05,24.28126661]
[1769458581394,27.12432132,124.07,123.98,23.83936315]
[1769458581594,27.12432132,124.07,124.0,23.83936315]
[1769458581595,2.38047356,124.05,124.0,23.83936315]
[1769458582288,0.05130898,124.04,124.0,23.83936315]
[1769458582492,27.11643244,124.04,123.98,23.83936315]
[1769458583490,24.73595888,124.04,123.98,23.83936315]
[1769458583696,24.73595888,124.04,123.98,31.10616315]
[1769458583994,24.73595888,124.04,123.99,23.83936315]
[1769458584196,2.38047356,124.03,123.98,23.83936315]
[1769458584493,24.73595888,124.04,123.98,23.83936315]
[1769458584695,2.43178254,124.04,123.98,23.83936315]
[1769458584896,0.05130898,124.04,124.0,23.83936315]
[1769458585088,27.06512346,124.08,124.0,23.83936315]
[1769458585290,27.06512346,124.08,124.0,23.89860088]
[1769458585497,2.38047356,124.07,124.0,26.21983671]
[1769458585696,34.32732346,124.06,124.0,23.83936315]
[1769458585891,7.2622,124.06,124.0,23.83936315]
[1769458586089,2.38047356,124.07,124.0,23.83936315]
[1769458586289,7.2614,124.08,124.02,26.21983671]
[1769458586489,7.2614,124.08,124.02,26.27090409]
[1769458587295,31.9460499,124.08,124.02,26.27090409]
[1769458588204,24.6846499,124.07,124.02,26.27090409]
[1769458588405,24.6846499,124.07,124.02,23.89043053]
[1769458592418,24.6846499,124.07,124.02,0.05106738]
[1769458592804,34.32682346,124.07,124.02,0.05106738]
[1769458594209,31.9468499,124.06,124.02,0.05106738]
[1769458594408,31.9468499,124.06,123.99,23.83936315]
[1769458594409,27.06512346,124.05,123.99,23.83936315]
[1769458594714,33.14328826,124.04,123.97,47.24753719]
[1769458594912,25.87998826,124.03,123.97,47.24753719]
[1769458595711,33.14408826,124.03,123.97,47.24753719]
[1769458596014,0.05135669,124.01,123.97,47.24753719]
[1769458599912,10.66732193,123.99,123.92,23.98036736]
[1769458600318,13.08013996,123.98,123.93,23.98036736]
[1769458600517,10.69354406,123.98,123.93,23.98036736]
[1769458601020,0.05525619,123.97,123.93,23.98036736]
[1769458602212,2.3865959,123.96,123.91,23.98036736]
[1769458602612,0.05525619,123.97,123.91,23.98036736]
[1769458602812,13.08013996,123.98,123.91,23.98036736]
[1769458603113,0.06001764,123.95,123.91,23.98036736]
[1769458603317,13.21740648,123.95,123.89,23.98036736]
[1769458603804,13.15738884,123.95,123.89,23.98036736]
[1769458604009,2.3865959,123.95,123.9,23.98036736]
[1769458604206,13.15738884,123.97,123.9,23.98036736]
[1769458604615,13.15738884,123.97,123.91,0.05078164]
[1769458604923,2.3865959,123.99,123.91,26.4177449]
[1769458605216,13.26901924,123.97,123.91,24.031149]
[1769458605416,13.26901924,123.97,123.91,23.98036736]
[1769458605615,13.26901924,123.97,123.92,23.98036736]
[1769458605916,13.26901924,123.97,123.93,0.05761649]
[1769458607318,2.3865959,123.97,123.93,24.03798385]
[1769458607521,2.3865959,123.98,123.93,24.03798385]
[1769458608825,2.3865959,123.97,123.93,24.03798385]
[1769458610812,2.3865959,123.97,123.93,0.05761649]
[1769458614120,11.04496533,123.96,123.93,0.05761649]
[1769458614320,13.44711457,123.95,123.9,24.04208929]
[1769458614524,13.44711457,123.95,123.87,24.04208929]
[1769458614723,2.3865959,123.93,123.87,24.04208929]
[1769458615423,13.44711457,123.95,123.87,26.42868519]
[1769458615922,2.3865959,123.97,123.91,24.04208929]
[1769458616115,13.46245166,123.97,123.91,24.04208929]
[1769458616824,11.07585576,123.97,123.91,24.04208929]
[1769458617022,13.46245166,123.97,123.93,0.05497006]
[1769458617821,18.37280753,123.99,123.93,24.09705935]
[1769458618028,11.10640753,123.99,123.93,24.09705935]
[1769458618318,113.0093,124.02,123.88,7.2725]
[1769458618319,13.5081189,123.96,123.88,7.2725]
[1769458618524,13.5081189,123.95,123.88,24.04208929]
[1769458618922,7.2696,123.94,123.88,24.04208929]
[1769458619122,13.5081189,123.95,123.88,24.04208929]
[1769458620329,13.53805445,123.93,123.86,24.04208929]
[1769458620624,13.5901056,123.93,123.86,24.04208929]
[1769458621527,13.5901056,123.93,123.86,26.42868519]
[1769458622028,20.8598056,123.93,123.87,24.04208929]
[1769458622620,13.5901056,123.93,123.87,24.04208929]
[1769458624828,0.05205115,123.93,123.88,24.04208929]
[1769458625123,0.05205115,123.93,123.88,26.42868519]
[1769458625324,11.27450757,123.93,123.88,24.04208929]
[1769458626529,0.05205115,123.93,123.88,31.31478929]
[1769458627528,0.05205115,123.93,123.89,24.04208929]
[1769458628030,2.3865959,123.95,123.9,24.04208929]
[1769458628329,2.3865959,123.95,123.9,24.09698593]
[1769458630723,20.90399751,123.97,123.9,24.09698593]
[1769458630919,20.90399751,123.97,123.91,24.04208929]
[1769458631321,20.95530974,123.99,123.91,31.31288929]
[1769458631526,20.95530974,123.99,123.91,24.04208929]
[1769458632031,20.95530974,123.99,123.93,24.10074343]
[1769458633331,2.3865959,123.95,123.89,24.04208929]
[1769458633824,11.31491001,123.96,123.9,24.04208929]
[1769458634029,11.32763568,123.98,123.9,24.04208929]
[1769458634229,2.3865959,123.97,123.9,24.04208929]
[1769458634636,2.3865959,123.97,123.93,0.06089415]
[1769458637928,13.76318468,123.95,123.88,24.04208929]
[1769458638137,2.3865959,123.93,123.88,24.04208929]
[1769458638638,21.08470337,123.93,123.88,24.04208929]
[1769458639332,0.05517512,123.92,123.88,24.04208929]
[1769458639939,2.44177102,123.92,123.88,24.04208929]
[1769458647236,2.3865959,123.91,123.88,24.04208929]
[1769458649245,2.44177102,123.92,123.88,24.04208929]
[1769458651549,2.3865959,123.91,123.88,24.04208929]
[1769458655848,2.3865959,123.91,123.86,24.62481832]
[1769458656860,0.05120726,123.9,123.86,24.62481832]
[1769458661053,7.2698,123.93,123.87,24.62481832]
[1769458663355,9.66063999,123.93,123.87,24.62481832]
[1769458664860,11.74681548,123.97,123.88,24.62481832]
[1769458665054,11.74681548,123.97,123.91,24.62481832]
[1769458665846,7.2683,123.96,123.91,24.62481832]
[1769458666447,2.39083999,123.95,123.89,24.62481832]
[1769458666655,2.44296838,123.95,123.89,24.62481832]
[1769458667957,7.2692,123.94,123.89,24.62481832]
[1769458672660,21.44212858,123.95,123.89,24.62481832]
[1769458674457,19.05128859,123.95,123.89,24.62481832]
[1769458682573,14.01713356,123.94,123.89,24.62481832]
[1769458682769,2.39083999,123.92,123.86,22.93736891]
[1769458683972,7.2698,123.93,123.87,22.93736891]
[1769458686372,18.92107174,123.93,123.87,22.93736891]
[1769458686578,7.2705,123.92,123.87,22.93736891]
[1769458687973,18.92097174,123.93,123.87,22.93736891]
[1769458688169,2.39083999,123.92,123.87,22.93736891]
[1769458689080,2.39083999,123.92,123.87,30.21056891]
[1769458689381,2.39083999,123.92,123.88,22.93736891]
[1769458691087,7.2697,123.93,123.88,22.93736891]
[1769458691279,2.39083999,123.93,123.88,22.93736891]
[1769458691475,2.39083999,123.95,123.88,22.93736891]
[1769458691680,2.39083999,123.95,123.89,22.93736891]
[1769458692273,2.39083999,123.93,123.89,22.93736891]
[1769458693883,21.2660503,123.96,123.89,22.93736891]
[1769458694079,2.39083999,123.94,123.89,22.93736891]
[1769458694887,2.39083999,123.94,123.89,30.20916891]
[1769458695389,0.06042156,123.93,123.9,0.0570147]
[1769458696885,0.06042156,123.93,123.9,22.99438361]
[1769458697983,2.39083999,123.94,123.9,22.99438361]
[1769458698288,2.39083999,123.96,123.9,22.99438361]
[1769458699295,2.39083999,123.96,123.9,30.26528361]
[1769458699587,2.39083999,123.96,123.91,23.44837821]
[1769458700980,14.00616968,123.96,123.9,23.50539291]
[1769458701893,21.27426968,123.96,123.9,23.50539291]
[1769458702793,9.65893999,123.96,123.9,23.50539291]
[1769458703890,2.39083999,123.94,123.9,0.0570147]
[1769458704799,2.39083999,123.94,123.88,23.44837821]
[1769458705099,9.66003999,123.94,123.88,23.44837821]
[1769458711101,21.22554731,123.94,123.88,23.44837821]
[1769458719604,21.22500792,123.94,123.88,23.44837821]
[1769458724209,2.3903006,123.92,123.88,23.44837821]
[1769458726305,11.51041095,123.95,123.88,23.44837821]
[1769458726606,2.3903006,123.98,123.91,23.14920137]
[1769458727812,9.6571006,123.98,123.92,23.14920137]
[1769458729711,11.48524003,123.99,123.93,24.42153753]
[1769458730012,9.6564006,124.0,123.93,24.42153753]
[1769458731211,7.2662,123.99,123.93,24.42153753]
[1769458733016,2.3903006,123.97,123.91,24.42153753]
[1769458735016,7.2671,123.98,123.93,24.42153753]
[1769458735216,9.6574006,123.98,123.93,24.42153753]
[1769458735513,0.05399715,123.97,123.94,0.05756237]
[1769458738516,0.05399715,123.97,123.93,24.42153753]
[1769458739018,7.32139715,123.97,123.93,24.42153753]
[1769458739215,9.71169775,123.97,123.93,24.42153753]
[1769458748522,0.05399715,123.97,123.93,24.42153753]
[1769458750518,11.0694627,124.02,123.94,24.42153753]
[1769458750722,2.3903006,124.01,123.94,24.42153753]
[1769458751118,2.3903006,124.01,123.94,31.69063753]
[1769458751323,2.3903006,124.01,123.95,24.42153753]
[1769458751622,2.3903006,124.01,123.95,26.81183813]
[1769458751831,7.2645,124.02,123.96,24.42153753]
[1769458752324,9.6542006,124.03,123.96,24.42153753]
[1769458754130,9.6542006,124.03,123.97,24.42153753]
[1769458755415,2.3903006,124.03,123.97,26.81183813]
[1769458756030,13.38394336,124.07,124.0,24.42153753]
[1769458756231,2.3903006,124.05,124.0,24.42153753]
[1769458756428,2.3903006,124.04,124.0,24.42153753]
[1769458756629,2.3903006,124.05,124.0,24.42153753]
[1769458757933,0.05837518,124.04,124.01,0.05176108]
[1769458760233,0.05837518,124.04,124.01,22.18402842]
[1769458761431,9.6525006,124.06,124.01,22.18402842]
[1769458763532,2.3903006,124.05,124.01,22.18402842]
[1769458771030,2.3903006,124.04,124.01,22.18402842]
[1769458776656,9.6531006,124.05,124.01,22.18402842]
[1769458777356,2.3903006,124.06,124.01,22.18402842]
[1769458777761,13.2409617,124.07,124.01,22.18402842]
[1769458777960,2.3903006,124.06,124.01,22.18402842]
[1769458778665,15.6312623,124.07,124.01,22.18402842]
[1769458778953,7.2621,124.06,124.01,22.18402842]
[1769458779562,2.3903006,124.07,124.01,22.18402842]
[1769458779760,15.61784017,124.08,124.01,22.18402842]
[1769458780349,22.87924017,124.08,124.02,22.13226734]
[1769458780558,2.3903006,124.07,124.02,22.13226734]
[1769458780862,2.3903006,124.08,124.02,22.13226734]
[1769458781462,2.3903006,124.08,124.03,22.1905087]
[1769458781659,2.38466305,124.08,124.03,22.1905087]
[1769458782263,9.64566305,124.08,124.03,22.1905087]
[1769458785560,321.92,124.11,124.03,22.1905087]
[1769458785561,7.2598,124.1,124.05,22.13226734]
[1769458785762,2.38466305,124.11,124.05,22.13226734]
[1769458785763,15.57389484,124.11,124.05,22.13226734]
[1769458786359,15.57389484,124.11,124.07,0.05487666]
[1769458786567,2.38466305,124.11,124.07,0.05487666]
[1769458786767,2.38466305,124.11,124.07,22.187144]
[1769458787360,15.56742726,124.13,124.07,22.187144]
[1769458788057,13.17638495,124.17,124.07,24.57180705]
[1769458788259,2.38466305,124.15,124.07,24.57180705]
[1769458788464,2.38466305,124.15,124.07,24.51693039]
[1769458788658,2.38466305,124.15,124.1,24.05360631]
[1769458789166,2.38466305,124.15,124.1,24.1118624]
[1769458789663,2.38466305,124.15,124.1,31.3715624]
[1769458789966,2.38466305,124.15,124.11,24.05360631]
[1769458791367,15.561048,124.17,124.11,24.05360631]
[1769458792369,2.38466305,124.17,124.13,0.05784499]
[1769458792671,2.38466305,124.18,124.13,24.1114513]
[1769458793168,2.38466305,124.17,124.13,24.1114513]
[1769458793868,20.35140122,124.21,124.13,24.1114513]
[1769458794063,2.38466305,124.2,124.13,24.1114513]
[1769458794570,2.38466305,124.2,124.13,24.05360631]
[1769458794762,22.73056159,124.2,124.15,0.05330031]
[1769458794962,2.38466305,124.18,124.15,0.05330031]
[1769458795866,2.38466305,124.18,124.13,24.05360631]
[1769458796067,2.43754511,124.18,124.13,24.05360631]
[1769458796570,2.38466305,124.16,124.13,24.05360631]
[1769458797369,2.38466305,124.16,124.13,24.10928536]
[1769458797965,2.38466305,124.17,124.13,24.10928536]
[1769458798672,0.05288206,124.18,124.13,24.10928536]
[1769458799271,0.05288206,124.18,124.14,24.05360631]
[1769458799475,2.38466305,124.2,124.14,24.05360631]
[1769458800166,15.45496837,124.21,124.15,24.05360631]
[1769458800768,2.38466305,124.2,124.15,24.05360631]
[1769458801067,2.38466305,124.2,124.17,0.05863504]
[1769458801671,13.07030532,124.21,124.17,0.05863504]
[1769458801971,9.63746305,124.22,124.17,24.11224135]
[1769458802669,2.38466305,124.22,124.17,24.11224135]
[1769458802862,2.38466305,124.21,124.17,24.11224135]
[1769458803571,2.38466305,124.21,124.17,24.05360631]
[1769458803759,7.2528,124.22,124.18,0.05571667]
[1769458803964,2.38466305,124.21,124.18,0.05571667]
[1769458804564,22.73086823,124.21,124.15,24.05360631]
[1769458804767,2.38466305,124.19,124.15,24.05360631]
[1769458805673,2.38466305,124.18,124.15,24.05360631]
[1769458805865,0.05734666,124.18,124.16,0.05348354]
[1769458808875,2.38466305,124.22,124.16,24.10708985]
[1769458809075,2.38466305,124.23,124.16,24.10708985]
[1769458809974,2.38466305,124.23,124.16,31.36328985]
[1769458810272,15.45345615,124.28,124.21,24.05360631]
[1769458810674,2.38466305,124.25,124.21,24.05360631]
[1769458811176,2.38466305,124.23,124.18,24.05360631]
[1769458817082,9.63686305,124.23,124.18,24.05360631]
[1769458817288,2.38466305,124.21,124.14,7.2569]
[1769458817482,2.38466305,124.21,124.15,24.05360631]
[1769458817682,2.38466305,124.21,124.15,31.31050631]
[1769458817990,2.38466305,124.21,124.16,24.05360631]
[1769458819686,0.0597739,124.2,124.16,24.05360631]
[1769458820180,0.0597739,124.2,124.17,0.05648945]
[1769458820483,2.44443695,124.2,124.17,0.05648945]
[1769458820884,2.44443695,124.2,124.16,24.05360631]
[1769458823494,2.38466305,124.18,124.13,23.47342714]
[1769458824484,0.05408274,124.17,124.13,23.47342714]
[1769458828787,2.43874579,124.17,124.13,23.47342714]
[1769458830890,2.38466305,124.16,124.13,23.47342714]
[1769458831391,2.38466305,124.16,124.11,23.47342714]
[1769458833284,9.69454579,124.17,124.11,23.47342714]
[1769458834996,9.69454579,124.17,124.12,23.47342714]
[1769458840197,2.43874579,124.17,124.12,30.73192714]
[1769458840400,2.43874579,124.17,124.13,23.47342714]
[1769458841089,2.38466305,124.19,124.14,23.47342714]
[1769458841289,15.35011259,124.24,124.14,23.47342714]
[1769458841494,2.38466305,124.23,124.16,23.47342714]
[1769458841699,2.37892331,124.23,124.16,23.47342714]
[1769458841996,2.37892331,124.21,124.16,23.47342714]
[1769458842499,17.73089712,124.21,124.16,23.47342714]
[1769458842897,2.37892331,124.19,124.14,23.47342714]
[1769458844999,2.37892331,124.21,124.15,23.47342714]
[1769458846004,2.37892331,124.21,124.16,23.47342714]
[1769458847004,24.96260089,124.21,124.16,23.47342714]
[1769458847203,17.70920089,124.21,124.16,23.47342714]
[1769458847401,2.37892331,124.19,124.16,23.47342714]
[1769458849718,2.37892331,124.19,124.14,21.95081036]
[1769458855616,7.254,124.2,124.14,21.95081036]
[1769458859728,7.254,124.2,124.15,21.95081036]
[1769458860124,24.96260089,124.21,124.15,21.95081036]
[1769458860329,9.63232331,124.21,124.15,21.95081036]
[1769458863434,2.37892331,124.21,124.15,29.20751036]
[1769458863736,2.37892331,124.23,124.16,21.95081036]
[1769458864934,9.63112331,124.23,124.17,21.95081036]
[1769458867426,112.7712,124.28,124.18,21.95081036]
[1769458867427,2.37892331,124.25,124.18,21.95081036]
[1769458867740,2.37892331,124.27,124.2,21.95081036]
[1769458867925,2.37892331,124.27,124.21,21.95081036]
[1769458869836,0.05665873,124.25,124.23,0.05375523]
[1769458871737,2.37892331,124.27,124.23,22.00456559]
[1769458875446,7.2498,124.28,124.23,22.00456559]
[1769458876648,9.62872331,124.28,124.23,22.00456559]
[1769458877646,7.2498,124.28,124.23,22.00456559]
[1769458885763,7.2499,124.27,124.23,22.00456559]
[1769458886752,9.62882331,124.27,124.23,22.00456559]
[1769458887053,7.2493,124.28,124.23,22.00456559]
[1769458887254,2.37892331,124.27,124.23,22.00456559]
[1769458894659,7.2493,124.28,124.23,22.00456559]
[1769458894857,2.37892331,124.28,124.23,22.00456559]
[1769458895461,14.55868553,124.29,124.23,22.00456559]
[1769458895462,2.37892331,124.27,124.23,22.00456559]
[1769458895759,2.37892331,124.28,124.23,22.00456559]
[1769458895962,9.62842331,124.28,124.23,22.00456559]
[1769458898561,2.37892331,124.27,124.23,22.00456559]
[1769458898759,21.52333803,124.26,124.23,0.05375523]
[1769458898957,21.52333803,124.26,124.2,23.64576783]
[1769458898958,2.37892331,124.24,124.2,23.64576783]
[1769458899158,2.37892331,124.22,124.16,23.64576783]
[1769458899359,2.37892331,124.22,124.16,30.90186783]
[1769458899562,2.37892331,124.22,124.17,23.64576783]
[1769458899862,2.37892331,124.21,124.17,23.64576783]
[1769458901457,9.63172331,124.22,124.17,23.64576783]
[1769458901665,2.37892331,124.21,124.17,23.64576783]
[1769458903671,2.37925368,124.22,124.17,23.64576783]
[1769458904166,2.37925368,124.21,124.17,23.64576783]
[1769458907574,2.37925368,124.23,124.18,23.64576783]
[1769458911176,2.37925368,124.22,124.18,23.64576783]
[1769458912374,2.37925368,124.21,124.18,23.64576783]
[1769458913876,7.2517,124.24,124.18,23.64576783]
[1769458914073,2.37925368,124.21,124.18,23.64576783]
[1769458914976,2.37925368,124.22,124.18,23.64576783]
[1769458915873,7.2517,124.24,124.18,23.64576783]
[1769458916074,2.37925368,124.22,124.18,23.64576783]
[1769458918075,2.37925368,124.21,124.18,23.64576783]
[1769458919381,2.37925368,124.2,124.16,22.78044409]
[1769458921175,2.37925368,124.21,124.16,22.78044409]
[1769458921982,2.37925368,124.21,124.16,30.03644409]
[1769458922182,2.37925368,124.21,124.17,22.78044409]
[1769458922477,2.37925368,124.22,124.17,22.78044409]
[1769458922877,7.2527,124.23,124.17,22.78044409]
[1769458923078,2.37925368,124.25,124.18,22.84141772]
[1769458923271,2.37925368,124.26,124.18,25.2206714]
[1769458923472,2.37925368,124.27,124.2,22.78044409]
[1769458923679,7.2504,124.27,124.21,22.78044409]
[1769458924587,7.2504,124.27,124.23,0.05125318]
[1769458925489,7.2504,124.27,124.21,22.78044409]
[1769458928588,7.2504,124.27,124.21,25.15969777]
[1769458930986,353.66911483,124.28,124.21,25.15969777]
[1769458931577,353.66911483,124.28,124.21,32.41299777]
[1769458931788,31.98019697,124.3,124.23,25.15969777]
[1769458932083,2.37925368,124.32,124.24,32.41129777]
[1769458932286,255.28,124.31,124.25,25.15969777]
[1769458932688,262.5275,124.31,124.25,25.15969777]
[1769458932987,350.98620306,124.31,124.25,25.15969777]
[1769458933189,29.56550306,124.33,124.27,2.37925368]
[1769458933484,29.56550306,124.33,124.27,25.15969777]
[1769458934977,7.2472,124.32,124.27,22.78044409]
[1769458935184,29.49953864,124.32,124.26,2.37925368]
[1769458935383,29.49953864,124.32,124.26,25.15969777]
[1769458935686,29.49953864,124.32,124.26,22.78044409]
[1769458936182,31.84661454,124.31,124.24,2.37925368]
[1769458936384,22.18772496,124.3,124.24,25.15969777]
[1769458937092,29.43602496,124.3,124.24,22.78044409]
[1769458938790,21.22483408,124.29,124.24,22.78044409]
[1769458939288,7.2493,124.28,124.24,22.78044409]
[1769458939484,7.2493,124.28,124.22,23.70000483]
[1769458940394,28.47393408,124.29,124.23,21.32075115]
[1769458941188,7.2493,124.28,124.23,21.32075115]
[1769458942593,7.2487,124.29,124.23,21.32075115]
[1769458942790,7.2487,124.29,124.23,23.70000483]
[1769458944591,7.2482,124.3,124.24,2.37925368]
[1769458944793,7.2482,124.3,124.24,23.70000483]
[1769458945787,28.18590032,124.31,124.24,23.70000483]
[1769458945984,28.18590032,124.31,124.25,21.32075115]
[1769458946683,2.37925368,124.32,124.26,21.32075115]
[1769458946684,7.2469,124.32,124.26,21.32075115]
[1769458946882,7.2469,124.32,124.26,23.70000483]
[1769458947690,9.62615368,124.32,124.26,21.32075115]
[1769458948592,7.2469,124.32,124.26,21.32075115]
[1769458948799,351.884054,124.33,124.27,21.32075115]
[1769458949293,2.37925368,124.32,124.27,21.32075115]
[1769458950589,344.637654,124.33,124.27,21.32075115]
[1769458950897,20.93840032,124.33,124.27,21.32075115]
[1769458951193,20.93840032,124.33,124.28,21.32075115]
[1769458951398,321.3,124.34,124.28,23.70000483]
[1769458952394,328.5459,124.34,124.28,23.70000483]
[1769458952599,328.5459,124.34,124.28,21.32075115]
[1769458953100,7.2459,124.34,124.28,21.32075115]
[1769458953800,9.62515368,124.34,124.28,21.32075115]
[1769458956098,7.2459,124.34,124.28,21.32075115]
[1769458956801,9.62515368,124.34,124.28,21.32075115]
[1769458957702,7.2459,124.34,124.28,21.32075115]
[1769458957902,9.62515368,124.34,124.28,21.32075115]
[1769458958297,7.2464,124.33,124.28,21.32075115]
[1769458959804,28.18420032,124.34,124.28,21.32075115]
[1769458960312,248.55925368,124.35,124.29,21.32075115]
[1769458960608,255.80445368,124.35,124.29,21.32075115]
[1769458960808,276.742854,124.35,124.29,21.32075115]
[1769458961007,30.562854,124.35,124.29,21.32075115]
[1769458962909,2.37925368,124.34,124.29,21.32075115]
[1769458963516,30.563454,124.34,124.29,21.32075115]
[1769458963804,2.37925368,124.33,124.29,21.32075115]
[1769458964614,20.93840032,124.32,124.23,21.32075115]
[1769458964807,2.37925368,124.29,124.23,21.32075115]
[1769458965002,23.317654,124.3,124.23,21.32075115]
[1769458965310,23.317654,124.3,124.24,21.32075115]